Cogmind - Beta 9.1 *** ADVENTURER MODE // 2019.11.27 @ 14:54:51 Player: toad3k Result: Self-destructed Performance ------------- Evolutions (2) 1000 Regions Visited (3) 600 Robots Destroyed (13) 65 Value Destroyed (354) 354 Prototype IDs (2) 40 Alien Tech Used (0) 0 Bonus (0) 0 TOTAL SCORE: 2059 Bonus ------- None Cogmind --------- Core Integrity 359/550 Matter 263/300 Energy 241/280 System Corruption 0% Temperature Cool (692) Location -8/Materials Parts ------- Power (1) Heavy Ion Engine Propulsion (3) Aluminum Leg Aluminum Leg Aluminum Leg Utility (3) High-capacity Storage Unit Advanced Targeting Computer Weapon (4) Small Laser Particle Gun Beam Cannon Inventory (12) Ion Engine Light Ion Engine Heavy Ion Engine Light Nuclear Core Small Storage Unit Assault Rifle Light Assault Rifle Mini Grenade Launcher Peak State ------------ Power Heavy Ion Engine Propulsion Aluminum Leg Aluminum Leg Aluminum Leg Utility High-capacity Storage Unit Advanced Targeting Computer Light Armor Plating Weapon Small Laser Particle Gun Beam Cannon Beam Cannon Inventory Ion Engine Light Ion Engine Heavy Ion Engine Small Storage Unit Assault Rifle Light Assault Rifle Mini Grenade Launcher [Rating: 17] Favorites ----------- Power Heavy Ion Engine Engine Heavy Ion Engine Propulsion Aluminum Leg Leg Aluminum Leg Utility Light Armor Plating Storage High-capacity Storage Unit Processor Advanced Targeting Computer Protection Light Armor Plating Weapon Small Laser Energy Gun Small Laser Energy Cannon Beam Cannon Ballistic Gun Assault Rifle Build | -11 -10 -9 -8 ------- Run | Scr Mat Mat Mat Slots Evolved 4 | . . 2 2 Power . | . . . . Propulsion 1 | . . 1 . Utility 1 | . . . 1 Weapon 2 | . . 1 1 Parts Attached 19 | 6 . 9 4 Power 3 | 1 . 2 . Engine 3 | 1 . 2 . Core . | . . . . Reactor . | . . . . Propulsion 3 | 2 . 1 . Treads . | . . . . Leg 3 | 2 . 1 . Wheel . | . . . . Hover . | . . . . Flight . | . . . . Utility 4 | 1 . 2 1 Device . | . . . . Storage 2 | 1 . 1 . Processor 1 | . . . 1 Hackware . | . . . . Protection 1 | . . 1 . Artifact . | . . . . Weapon 9 | 2 . 4 3 Energy Gun 5 | 1 . 1 3 Energy Cannon 2 | . . 2 . Ballistic Gun 2 | 1 . 1 . Ballistic Cannon . | . . . . Launcher . | . . . . Special Weapon . | . . . . Impact Weapon . | . . . . Slashing Weapon . | . . . . Piercing Weapon . | . . . . Special Melee Weapon . | . . . . Unidentified Prototypes 2 | . . 1 1 Parts Lost 2 | . . . 2 Power . | . . . . Propulsion . | . . . . Utility 1 | . . . 1 Weapon 1 | . . . 1 Highest Loss Streak 2 | . . . 2 Average Slot Usage (%) 95 | . 85 98 94 Engine 11 | . 14 11 9 Leg 31 | . 28 33 27 Storage 11 | . 14 10 9 Protection 7 | . . 9 8 Energy Gun 13 | . 14 11 18 Energy Cannon 3 | . . 1 18 Ballistic Gun 15 | . 14 19 . Naked Turns . | . . . . Heaviest Build 53 | 10 10 50 53 Greatest Support 30 | 20 20 30 30 Greatest Overweight (x) 3 | 3 . 1 2 Average Overweight (x) . | . . . 1 Largest Inventory Capacity 12 | 6 6 12 12 Average Capacity 9 | 5 6 10 12 Most Carried 9 | 2 4 8 9 Average Carried 4 | . 2 4 7 Final Capacity 12 | 6 6 12 12 Final Carried 8 | 2 4 8 8 Class Distribution -------------------- 61% | Tank 22% | Mutant 16% | Gunner Dominant Class ---------------- Mutant | -10/Materials Tank | -9/Materials Gunner | -8/Materials Resources | -11 -10 -9 -8 ----------- Run | Scr Mat Mat Mat Matter Collected 432 | 171 31 155 75 Remotely . | . . . . Salvage Created 470 | . 31 259 180 Parts 27 | . 3 18 6 Haulers Intercepted 2 | . . 2 . Recyclers Shooed . | . . . . Parts Field Recycled . | . . . . Retrieved Matter . | . . . . Parts Self-Destructed . | . . . . Prevented . | . . . . Kills | -11 -10 -9 -8 ------- Run | Scr Mat Mat Mat Combat Hostiles Destroyed 9 | . 1 3 5 Guns 5 | . 1 3 1 Cannons 4 | . . . 4 Classes Destroyed 6 | . 1 3 2 Hauler 2 | . . 2 . Watcher 2 | . . 2 . Swarmer 2 | . . . 2 Grunt 5 | . 1 2 2 Duelist 1 | . . . 1 Sentry 1 | . . 1 . Best Kill Streak 3 | . 1 2 3 Combat Bots Only 3 | . 1 2 3 Max Kills in Single Turn 1 | . 1 1 1 Gunslinging . | . . . . Exploded . | . . . . Melee . | . . . . Uniques/NPCs Destroyed . | . . . . Combat | -11 -10 -9 -8 -------- Run | Scr Mat Mat Mat Damage Taken 558 | . 24 56 478 Core 219 | . . 28 191 Absorbed by Shields . | . . . . Core Remaining (%) 97 | 100 100 93 . Volleys Fired 33 | . 3 20 10 Largest 4 | . 2 3 4 Hottest 225 | . 60 80 225 Shots Fired 102 | . 6 60 36 Gun 84 | . 6 60 18 Cannon 18 | . . . 18 Launcher . | . . . . Special . | . . . . Kinetic 43 | . 3 40 . Thermal 59 | . 3 20 36 Explosive . | . . . . Electromagnetic . | . . . . Robot Hit Streak 13 | . 2 13 9 Robot Miss Streak 2 | . 2 2 1 Penetration Max . | . . . . Secondary Targets 1 | . . 1 . Max Gunslinging Chain 1 | . . 1 . Shots Hit Robots 78 | . 3 48 27 Core Hits 27 | . 2 16 9 Critical Hits 1 | . . . 1 Critical Kills . | . . . . Critical Parts Destroyed 1 | . . . 1 Melee Attacks . | . . . . Impact . | . . . . Slashing . | . . . . Piercing . | . . . . Sneak Attacks . | . . . . Combat Hostiles . | . . . . Follow-up Attacks . | . . . . Damage Inflicted 949 | . 24 506 419 Guns 705 | . 24 506 175 Cannons 244 | . . . 244 Explosions . | . . . . Melee . | . . . . Ramming . | . . . . Kinetic 331 | . . 331 . Thermal 618 | . 24 175 419 Explosive . | . . . . Electromagnetic . | . . . . Impact . | . . . . Slashing . | . . . . Piercing . | . . . . Highest Corruption 1 | . 1 . . Average Corruption 1 | . 1 . . Corruption Purged . | . . . . Overload Shots . | . . . . Overflow Damage . | . . . . Projectiles . | . . . . Explosions . | . . . . Melee . | . . . . Knockbacks . | . . . . Impact . | . . . . Kinetic . | . . . . Secondary . | . . . . Self-Inflicted Damage . | . . . . Shots . | . . . . Rammed . | . . . . Targets Rammed . | . . . . Kicked . | . . . . Crushed . | . . . . Highest Temperature 692 | . 12 78 692 Average Temperature 182 | . 10 23 387 Received Heat Transfer 132 | . 18 33 81 Effects 18 | . . . 18 Shutdowns 2 | . . . 2 Energy Bleed 2 | . . . 2 Interference 2 | . . . 2 Matter Decay 3 | . . . 3 Short Circuit 3 | . . . 3 Damage (major) 4 | . . . 4 Damage (core) 2 | . . . 2 Siege Activations . | . . . . Robots Corrupted . | . . . . Combat Hostiles . | . . . . Parts Fried . | . . . . Impact Corruptions . | . . . . Robots Melted . | . . . . Combat Hostiles . | . . . . Parts Melted 1 | . . . 1 Heat Transferred 1377 | . 50 400 927 Parts Sabotaged . | . . . . Parts Stolen . | . . . . Parts Stripped . | . . . . Power Chain Reactions . | . . . . Missiles Intercepted . | . . . . Alert | -11 -10 -9 -8 ------- Run | Scr Mat Mat Mat Peak Influence 176 | . 42 176 112 Average Influence 61 | . 9 87 39 Maximum Alert Level . | . . . . Low Security (%) 100 | . . . . Level 1 . | . . . . Level 2 . | . . . . Level 3 . | . . . . Level 4 . | . . . . Level 5 . | . . . . High Security . | . . . . Max Security . | . . . . Squads Dispatched 3 | . 1 2 . Investigation 1 | . 1 . . Extermination . | . . . . Reinforcement 2 | . . 2 . Assault . | . . . . Garrison . | . . . . Intercept . | . . . . Construction Impeded . | . . . . Haulers Reinforced . | . . . . Stealth | -11 -10 -9 -8 --------- Run | Scr Mat Mat Mat Distress Signals 2 | . . 2 . Communications Jammed . | . . . . Distress Signals . | . . . . Times Spotted 16 | . 1 8 7 Peak Tracking Total 4 | . 1 3 4 Tactical Retreats 2 | . . 1 1 Traps | -11 -10 -9 -8 ------- Run | Scr Mat Mat Mat Traps Triggered 3 | . 3 . . Indirectly . | . . . . Trap Hack Attempts . | . . . . Triggered . | . . . . Disarmed . | . . . . Reprogrammed . | . . . . Reused . | . . . . Traps Extracted . | . . . . Installed . | . . . . Triggered . | . . . . Machines | -11 -10 -9 -8 ---------- Run | Scr Mat Mat Mat Machines Disabled 1 | . . . 1 Max in Single Turn 1 | . . . 1 Machines Sabotaged . | . . . . Garrisons Compromised . | . . . . Overloaded Fab Kills . | . . . . Fab Network Shutdowns . | . . . . Hacking | -11 -10 -9 -8 --------- Run | Scr Mat Mat Mat Machines Accessed 3 | . 2 1 . Terminals 3 | . 2 1 . Fabricators . | . . . . Repair Stations . | . . . . Recycling Units . | . . . . Scanalyzers . | . . . . Garrison Access . | . . . . Total Hacks 7 | . 5 2 . Successful 4 | . 2 2 . Failed 3 | . 3 . . Catastrophic 1 | . 1 . . Database Lockouts . | . . . . Manual 3 | . 2 1 . Terminals 7 | . 5 2 . Fabricators . | . . . . Repair Stations . | . . . . Recycling Units . | . . . . Scanalyzers . | . . . . Garrison Access . | . . . . Terminal Hacks 4 | . 2 2 . Robot Analysis 1 | . 1 . . Dispatch Records 1 | . . 1 . Recall Investigation 1 | . 1 . . Recall Reinforcements 1 | . . 1 . Fabricator Hacks . | . . . . Repair Station Hacks . | . . . . Recycling Unit Hacks . | . . . . Scanalyzer . | . . . . Garrison Access Hacks . | . . . . Unauthorized Hacks . | . . . . Terminals . | . . . . Fabricators . | . . . . Repair Stations . | . . . . Recycling Units . | . . . . Scanalyzers . | . . . . Garrison Access . | . . . . Data Cores Recovered . | . . . . Used . | . . . . Hacking Detections 2 | . 1 1 . Full Trace Events 1 | . 1 . . Feedback Events . | . . . . Feedback Blocked . | . . . . Robot Schematics Acquired . | . . . . Robots Built . | . . . . Matter . | . . . . Time . | . . . . Total Robot Build Rating . | . . . . Part Schematics Acquired . | . . . . Parts Built . | . . . . Matter . | . . . . Time . | . . . . Total Part Build Rating . | . . . . Parts Repaired . | . . . . Time . | . . . . Parts Recycled . | . . . . Recycled Matter . | . . . . Retrieved Matter . | . . . . Retrieved Components . | . . . . Parts Scanalyzed . | . . . . Part Schematics Acquired . | . . . . Parts Damaged . | . . . . Bothacking | -11 -10 -9 -8 ------------ Run | Scr Mat Mat Mat Used RIF Installer . | . . . . Robots Hacked . | . . . . Non-combat . | . . . . Combat . | . . . . Robot Hacks Applied . | . . . . Relay Couplers Released . | . . . . Robots Rewired . | . . . . Allies Hacked . | . . . . Hacks Repelled . | . . . . Allies | -11 -10 -9 -8 -------- Run | Scr Mat Mat Mat Total Allies . | . . . . Largest Group . | . . . . Highest-Rated Group . | . . . . Highest-Rated Ally . | . . . . Total Orders . | . . . . Ally Attacks . | . . . . Total Damage . | . . . . Kills . | . . . . Allies Corrupted . | . . . . Allies Melted . | . . . . Intel | -11 -10 -9 -8 ------- Run | Scr Mat Mat Mat Robot Analysis Total 1 | . 1 . . Derelict Logs Recovered . | . . . . Drone Launches . | . . . . Drone Recoveries . | . . . . Exploration | -11 -10 -9 -8 ------------- Run | Scr Mat Mat Mat Turns Passed 818 | 68 127 507 116 Spaces Moved 467 | 49 97 279 42 Core 13 | 13 . . . Treads . | . . . . Legs 454 | 36 97 279 42 Wheels . | . . . . Hover . | . . . . Flight . | . . . . Fastest Speed 50 | 50 120 120 150 Average Speed 139 | 118 120 144 177 Slowest Speed 200 | 200 120 150 180 Overloaded Moves . | . . . . Propulsion Burnouts . | . . . . Robots Hopped . | . . . . Cave-ins Triggered . | . . . . Exploration Rate (%) 16 | 4 26 29 7 Regions Visited 3 Branch Regions . Pre-discovered Areas . | . . . . Known Exits Taken . | . . . . Unknown Exits Taken 3 | 1 1 1 . Scrap Searched . | . . . . Spaces Dug . | . . . . Terrain Destroyed . | . . . . Melee . | . . . . Projectile . | . . . . AOE . | . . . . Actions | -11 -10 -9 -8 --------- Run | Scr Mat Mat Mat Total 558 | 56 101 341 60 Wait 25 | . . 25 . Move 464 | 48 96 278 42 Hop . | . . . . Pick Up 7 | 2 2 2 1 Fast Attach 14 | 6 . 6 2 Attach 4 | . . 2 2 Detach 7 | . . 5 2 Swap 1 | . . 1 . Drop 3 | . . 2 1 Fire 33 | . 3 20 10 Melee . | . . . . Ram . | . . . . Kick . | . . . . Crush . | . . . . Escape Stasis . | . . . . Rewire . | . . . . Trap . | . . . . Miscellaneous . | . . . . Route ------- -11/Scrapyard -10/Materials -9/Materials (discovered 2 exits: [*Mat] / [*Min]) -8/Materials History --------- Turn | Location | Event 16 | -11/Scrapyard | Discovered new exit (range 15) 69 | -11/Scrapyard | Entered Materials 166 | -10/Materials | Discovered new exit (range 12) 196 | -10/Materials | Entered another Materials area 196 | -9/Materials | Evolved 2 slots: Propulsion x1, Weapon x1 277 | -9/Materials | Discovered new exit (range 16) 570 | -9/Materials | Build established: Tank 691 | -9/Materials | Discovered new exit (range 8) 703 | -9/Materials | Entered another Materials area 703 | -8/Materials | Evolved 2 slots: Utility x1, Weapon x1 819 | -8/Materials | Self-destructed Last Messages --------------- 00793_ Acquired Lgt. Nuclear Core. 00794_ Acquired 57 matter. 00803_ L-31 Rogue suffers critical hit. 00803_ Destroyed Imp. Aluminum Leg. 00806_ Lgt. Armor Plating destroyed. 00806_ L-31 Rogue destroyed. 00811_ Overheating: System interference. 00811_ Beam Cannon temporarily disabled. 00811_ Sml. Laser temporarily disabled. 00814_ Overheating: Matter decay (-30). 00815_ Overheating: Core damaged (-93). 00815_ Beam Cannon destroyed. 00816_ Overheating: Short circuit. 00816_ Aluminum Leg permanently disabled. 00816_ Imp. Heat Sink melted. 00816_ G-47 Trooper destroyed. 00817_ Power failure, Hvy. Ion Engine shutdown. 00817_ Overheating: Matter decay (-31). 00818_ Overheating: Short circuit. 00818_ Beam Cannon permanently disabled. Map ----- +----------------------------------------------------+ | ??????????????????????????????????????????? | | ??????????????????????????????????????????? | | ?????????????????#######??????????????????? | | ??????????######## #??????????????????? | | ??????????# #??????????????????? | | ??????????# #??????????????????? | | ??????????# #??????????????????? | | ????????######+### #??????????????????? | | ????????#! ## ##??????????????????? | | ????????# /[ ## #???????????????????? | | ????????# /[ ## #???????????????????? | | ????????# ## ##########+######???? | | ????????# ]## ??? | | ????????# """ ## ??? | | ????????# """ ## ??? | | ????????# """ =########+######+####?????? | | ????????# #???# " =#????????????? | | ????????##########???#"%" #????????????? | | ?????????????????????# """ #????????????? | | ?????????????????????# """ #????????????? | | ?????????????????????# "" #????????????? | | ?????????????????????# "" #????????????? | | ?????????????????????# "" #????????????? | | ?????????????????????# "" #????????????? | | ??????????############ "" #????????????? | | ???????# @%!;% " #????????????? | | ???????# ##### ##### % #????????????? | | ?????????????????????#########????????????? | | ??????????????????????????????????????????? | | ??????????????????????????????????????????? | | ??????????????????????????????????????????? | | ??????????????????????????????????????????? | | ??????????????????????????????????????????? | | ??????????????????????????????????????????? | | ??????????????????????????????????????????? | | ??????????????????????????????????????????? | | ??????????????????????????????????????????? | | ??????????????????????????????????????????? | | ??????????????????????????????????????????? | | ??????????????????????????????????????????? | | ??????????????????????????????????????????? | | ??????????????????????????????????????????? | | ??????????????????????????????????????????? | | ??????????????????????????????????????????? | | ??????????????????????????????????????????? | | ??????????????????????????????????????????? | | ??????????????????????????????????????????? | | ??????????????????????????????????????????? | | ??????????????????????????????????????????? | | ??????????????????????????????????????????? | +----------------------------------------------------+ Best States ------------- Heat Dissipation 31 Energy Generation 14 Energy Capacity 280 Matter Stores 292 Matter Capacity 300 Sight Range 16 Terrain Scan Density 10 Armor Coverage 150 Resistance: KI 20 Resistance: TH 20 Resistance: EX 20 Resistance: EM 20 Resistance: I 20 Resistance: S 20 Resistance: P 20 Evasion (%) 40 Targeting Accuracy 8 Item Schematics ----------------- None Robot Schematics ------------------ None Fabricated ------------ Nothing Alien Tech Used ----------------- None Achievements -------------- None Challenges ------------ None Game ------ Seed LatentAntimatterRedirector Manual? 0 Play Time 00:07:49 Cumulative 34.4 hours Start 2019.11.27 @ 14:48:05 End 2019.11.27 @ 14:54:51 Sessions 1 Manual Loads 0 Difficulty Adventurer Special Mode None Game No. 20 Rogue -20 Adventurer 20 Explorer 0 Win Type - Total 1 Types 0/0/1/0/0/0/0 Lore% 28 Gallery% 43 Achievement% 35 Wizard Run 0 Options --------- ASCII 0 Keyboard 1 Movement Vi Keybinds 0 Fullscreen 1 Font 18/SmallcapsGlow Map View 76x50 Tactical HUD 1 Map Filters NONE Filters NONE Steam 0 RUN: c2bd7307-1286-4442-ab0e-411068825177